Cogmind - Beta 13 @@@ ROGUE MODE // 2024.04.30 @ 12:54:49 Player: monkeman Result: Destroyed by Autobeam Turret with Autobeam Performance ------------- Evolutions (0) 0 Regions Visited (2) 400 Robots Destroyed (22) 110 Value Destroyed (812) 812 Prototype IDs (2) 40 Alien Tech Used (0) 0 Bonus (0) 0 TOTAL SCORE: 1362 Bonus ------- None Cogmind --------- Core Integrity 0/250 Matter 42/300 Energy 199/200 System Corruption 0% Temperature Cool (30) Movement Rolling (110) Location -10/Subcaves Parts ------- > --- POWER (1) -------- Subdweller Power Source > --- PROPULSION (2) --- Light Treads Subdweller Monowheel > --- UTILITY (2) ------ (None) > --- WEAPON (2) ------- Subdweller Laser Makeshift Shrapnel Gun > --- INVENTORY (5) ---- Hacking Suite Subdweller Machine Gun Grenade Launcher Subdweller Shrapnel Launcher Dirty Datajack (20) Peak State ------------ > --- POWER ------------ Subdweller Power Source > --- PROPULSION ------- Light Treads Subdweller Monowheel > --- UTILITY ---------- Scrap Shield > --- WEAPON ----------- Subdweller Laser Makeshift Shrapnel Gun > --- INVENTORY -------- Hacking Suite Subdweller Laser Grenade Launcher Subdweller Shrapnel Launcher Dirty Datajack [Rating: 16] Favorites ----------- Power Subdweller Power Source Engine Subdweller Power Source Propulsion Light Treads Treads Light Treads Wheel Subdweller Monowheel Utility Scrap Shield Device Improved Terrain Scanner Storage Large Storage Unit Protection Scrap Shield Weapon Subdweller Laser Energy Gun Subdweller Laser Energy Cannon Subdweller Beam Cannon Ballistic Gun Light Assault Rifle Launcher Subdweller Shrapnel Launcher Build | -11 -10 -10 ------- Run | Yrd Mat Sub Slots Evolved . | . . . Power . | . . . Propulsion . | . . . Utility . | . . . Weapon . | . . . Parts Attached 35 | 7 6 22 Power 6 | 1 1 4 Engine 6 | 1 1 4 Core . | . . . Reactor . | . . . Propulsion 3 | 2 . 1 Treads 2 | 2 . . Leg . | . . . Wheel 1 | . . 1 Hover . | . . . Flight . | . . . Utility 8 | 2 3 3 Device 1 | 1 . . Storage 2 | 1 1 . Processor . | . . . Hackware . | . . . Protection 5 | . 2 3 Artifact . | . . . Weapon 18 | 2 2 14 Energy Gun 8 | . 1 7 Energy Cannon 2 | . . 2 Ballistic Gun 5 | 2 . 3 Ballistic Cannon . | . . . Launcher 3 | . 1 2 Special Weapon . | . . . Impact Weapon . | . . . Slashing Weapon . | . . . Piercing Weapon . | . . . Special Melee Weapon . | . . . Unidentified Prototypes . | . . . Parts Lost 6 | . 2 4 Power . | . . . Propulsion 1 | . . 1 Utility 3 | . 1 2 Weapon 2 | . 1 1 Highest Loss Streak 2 | . 2 2 To Critical Strikes . | . . . Average Slot Usage (%) 85 | . 99 82 Engine 12 | . 14 12 Treads 22 | . 28 21 Wheel 5 | . . 6 Storage 3 | . 14 . Protection 12 | . 9 12 Energy Gun 11 | . 5 13 Energy Cannon 2 | . . 2 Ballistic Gun 12 | . 22 10 Naked Turns . | . . . Heaviest Build 35 | 13 32 35 Greatest Support 40 | 40 40 40 Greatest Overweight (x) 1 | . . 1 Average Overweight (x) . | . . . Largest Inventory Capacity 15 | 8 15 15 Average Capacity 6 | 7 12 5 Most Carried 15 | 5 15 15 Average Carried 5 | 3 8 5 Final Capacity 15 | 8 15 5 Final Carried 15 | 4 15 5 Class Distribution -------------------- 59% | Subdweller-Mutant 40% | Mutant Dominant Class ---------------- Mutant | -10/Materials Subdweller-Mutant | -10/Subcaves Resources | -11 -10 -10 ----------- Run | Yrd Mat Sub Matter Collected 789 | 249 158 382 Remotely . | . . . Salvage Created 758 | 21 288 449 Parts 39 | 1 11 27 Haulers Intercepted . | . . . Recyclers Shooed 1 | . 1 . Parts Field Recycled . | . . . Retrieved Matter . | . . . Parts Self-Destructed 15 | . . 15 Prevented . | . . . Kills | -11 -10 -10 ------- Run | Yrd Mat Sub Combat Hostiles Destroyed 20 | . 7 13 Guns 17 | . 7 10 Cannons 1 | . . 1 AOE 2 | . . 2 Classes Destroyed 5 | 1 2 2 Tunneler 1 | 1 . . Watcher 1 | . 1 . Grunt 7 | . 7 . Sentry 1 | . . 1 Subdweller 12 | . . 12 Best Kill Streak 7 | 1 7 3 Combat Bots Only 5 | . 5 3 Max Kills in Single Turn 1 | 1 1 1 Gunslinging . | . . . Exploded 1 | . . 1 Melee . | . . . Uniques/NPCs Destroyed . | . . . Combat | -11 -10 -10 -------- Run | Yrd Mat Sub Hostile Shots Fired 123 | . 54 69 Missed 34 | . 14 20 Damage Taken 1787 | . 612 1175 Core 250 | . 82 168 Absorbed by Shields . | . . . Core Remaining (%) 100 | 100 . . Volleys Fired 121 | 12 43 66 Largest 2 | 2 2 2 Hottest 120 | 40 60 120 Shots Fired 222 | 24 80 118 Gun 194 | 24 79 91 Cannon 17 | . . 17 Launcher 11 | . 1 10 Special . | . . . Kinetic 159 | 24 73 62 Thermal 53 | . . 53 Explosive 1 | . 1 . Electromagnetic 9 | . 6 3 Robot Hit Streak 21 | 4 21 15 Robot Miss Streak 3 | 2 3 2 Penetration Max . | . . . Secondary Targets . | . . . Shots Hit Robots 140 | 16 56 68 Core Hits 55 | 4 22 29 Critical Kills . | . . . Critical Parts Destroyed 2 | . 2 . Critical Strikes 2 | . 2 . Destroy 2 | . 2 . Melee Attacks . | . . . Impact . | . . . Slashing . | . . . Piercing . | . . . Sneak Attacks . | . . . Combat Hostiles . | . . . Follow-up Attacks . | . . . Damage Inflicted 2613 | 141 485 1987 Guns 1663 | 141 482 1040 Cannons 222 | . . 222 Explosions 725 | . . 725 Melee . | . . . Ramming 3 | . 3 . Kinetic 1902 | 141 393 1368 Thermal 596 | . . 596 Explosive . | . . . Electromagnetic 112 | . 89 23 Impact . | . . . Slashing . | . . . Piercing . | . . . Highest Corruption . | . . . Average Corruption . | . . . Corruption Purged . | . . . Corruption Blocked . | . . . Overload Shots . | . . . Overflow Damage 3 | . . 3 Projectiles . | . . . Explosions 3 | . . 3 Melee . | . . . Knockbacks . | . . . Impact . | . . . Kinetic . | . . . Secondary . | . . . Self-Inflicted Damage 22 | . . 22 Shots 1 | . . 1 Rammed 1 | . 1 . Targets Rammed 1 | . 1 . Kicked . | . . . Crushed . | . . . Highest Temperature 204 | . 204 37 Average Temperature 44 | . 64 12 Received Heat Transfer 504 | . 315 189 Siege Activations . | . . . Robots Corrupted . | . . . Combat Hostiles . | . . . Parts Fried 1 | . 1 . Impact Corruptions . | . . . Robots Melted . | . . . Combat Hostiles . | . . . Parts Melted . | . . . Heat Transferred 771 | . . 771 Parts Sabotaged . | . . . Parts Stolen . | . . . Parts Stripped . | . . . Power Chain Reactions . | . . . Alert | -11 -10 -10 ------- Run | Yrd Mat Sub Peak Influence 254 | 5 254 . Initial 3 | . 3 . Average 75 | . 102 . Maximum Alert Level 1 | . 1 . Low Security (%) 83 | 100 77 . Level 1 16 | . 22 . Level 2 . | . . . Level 3 . | . . . Level 4 . | . . . Level 5 . | . . . High Security . | . . . Max Security . | . . . Squads Dispatched 1 | . 1 . Investigation . | . . . Extermination . | . . . Reinforcement 1 | . 1 . Assault . | . . . Garrison . | . . . Intercept . | . . . Searches Triggered . | . . . Construction Impeded . | . . . Haulers Reinforced . | . . . Active Scanning Responses . | . . . Cargo Convoy Interrupts . | . . . Stealth | -11 -10 -10 --------- Run | Yrd Mat Sub Distress Signals 1 | . 1 . Communications Jammed . | . . . Distress Signals . | . . . Times Spotted 33 | . 13 20 Peak Tracking Total 4 | . 4 3 Tactical Retreats 4 | . 2 2 Traps | -11 -10 -10 ------- Run | Yrd Mat Sub Traps Triggered . | . . . Indirectly . | . . . Trap Hack Attempts . | . . . Triggered . | . . . Disarmed . | . . . Reprogrammed . | . . . Reused . | . . . Traps Extracted . | . . . Installed . | . . . Triggered . | . . . Machines | -11 -10 -10 ---------- Run | Yrd Mat Sub Machines Disabled . | . . . Max in Single Turn . | . . . Machines Repaired . | . . . Machines Dismantled . | . . . Machines Sabotaged . | . . . Overloaded Fab Kills . | . . . Hacking | -11 -10 -10 --------- Run | Yrd Mat Sub Machines Accessed 6 | . 5 1 Terminals 5 | . 5 . Fabricators . | . . . Repair Stations . | . . . Recycling Units . | . . . Scanalyzers . | . . . Garrison Access . | . . . Total Hacks 24 | . 21 3 Successful 15 | . 12 3 Failed 9 | . 9 . Catastrophic . | . . . Database Lockouts . | . . . Manual 15 | . 15 . Terminals 21 | . 21 . Fabricators . | . . . Repair Stations . | . . . Recycling Units . | . . . Scanalyzers . | . . . Garrison Access . | . . . Terminal Hacks 13 | . 10 3 Record 3 | . . 3 Part Schematic 1 | . 1 . Robot Analysis 4 | . 4 . Prototype ID Bank 1 | . 1 . Locate Traps 2 | . 2 . Hauler Manifests 1 | . 1 . Zone Layout 1 | . 1 . Fabricator Hacks . | . . . Repair Station Hacks . | . . . Recycling Unit Hacks . | . . . Scanalyzer . | . . . Garrison Access Hacks . | . . . Unauthorized Hacks 2 | . 2 . Terminals 2 | . 2 . Assimilate 1 | . 1 . Botnet 1 | . 1 . Fabricators . | . . . Repair Stations . | . . . Recycling Units . | . . . Scanalyzers . | . . . Garrison Access . | . . . Data Cores Recovered . | . . . Used . | . . . Hacking Detections 5 | . 5 . Full Trace Events . | . . . Feedback Events . | . . . Feedback Blocked . | . . . Robot Schematics Acquired . | . . . Robots Built . | . . . Authchips . | . . . Time . | . . . Total Robot Build Rating . | . . . Part Schematics Acquired 1 | . 1 . Parts Built . | . . . Authchips . | . . . Time . | . . . Total Part Build Rating . | . . . Parts Repaired . | . . . Time . | . . . Parts Recycled . | . . . Recycled Matter . | . . . Retrieved Matter . | . . . Retrieved Components . | . . . Parts Scanalyzed . | . . . Part Schematics Acquired . | . . . Parts Damaged . | . . . Bothacking | -11 -10 -10 ------------ Run | Yrd Mat Sub Used RIF Installer . | . . . Robots Hacked . | . . . Non-combat . | . . . Combat . | . . . Robot Hacks Applied . | . . . Relay Couplers Released . | . . . Fabnet Peak Effective % . | . . . Robots Rewired . | . . . Allies Hacked . | . . . Hacks Repelled . | . . . Allies | -11 -10 -10 -------- Run | Yrd Mat Sub Total Allies . | . . . Largest Group . | . . . Highest-Rated Group . | . . . Highest-Rated Ally . | . . . Total Orders . | . . . Ally Attacks . | . . . Total Damage . | . . . Kills . | . . . Allies Corrupted . | . . . Allies Melted . | . . . Intel | -11 -10 -10 ------- Run | Yrd Mat Sub Robot Analysis Total 4 | . 4 . Derelict Logs Recovered . | . . . Drone Launches . | . . . Drone Recoveries . | . . . Exploration | -11 -10 -10 ------------- Run | Yrd Mat Sub Turns Passed 2980 | 174 469 2337 Spaces Moved 1791 | 81 208 1502 Core 2 | 2 . . Treads 953 | 79 208 666 Legs . | . . . Wheels 836 | . . 836 Hover . | . . . Flight . | . . . Fastest Speed 50 | 50 160 110 Average Speed 140 | 157 160 137 Slowest Speed 240 | 160 160 240 Overloaded Moves . | . . . Propulsion Burnouts . | . . . Robots Hopped . | . . . Cave-ins Triggered . | . . . Exploration Rate (%) 38 | 5 26 83 Regions Visited 2 Branch Regions 1 Pre-discovered Areas 1 | . . 1 Known Exits Taken . | . . . Unknown Exits Taken 2 | 1 1 . Scrap Searched 2 | . . 2 Spaces Dug 5 | . 5 . Terrain Destroyed 99 | . 5 94 Melee . | . . . Projectile 2 | . . 2 AOE 97 | . 5 92 Terrain Rammed . | . . . Walls Destroyed . | . . . Machines Disabled . | . . . Actions | -11 -10 -10 --------- Run | Yrd Mat Sub Total 2044 | 106 278 1660 Wait 36 | 2 3 31 Move 1789 | 80 207 1502 Hop . | . . . Pick Up 32 | 5 15 12 Fast Attach 12 | 6 . 6 Attach 6 | 1 2 3 Detach . | . . . Swap 17 | . 4 13 Drop 19 | . 3 16 Fire 121 | 12 43 66 Melee . | . . . Ram . | . . . Kick . | . . . Crush 1 | . 1 . Escape Stasis . | . . . Rewire 1 | . . 1 Trap . | . . . Miscellaneous 10 | . . 10 Route ------- -11/Scrapyard -10/Materials -10/Subcaves (discovered 2 exits: [*Mat x2]) History --------- Turn | Location | Event 48 | -11/Scrapyard | Discovered new exit (range 13) 175 | -11/Scrapyard | Entered Materials 325 | -10/Materials | Build established: Mutant 458 | -10/Materials | Discovered new exit (range 8) 644 | -10/Materials | Entered Subcaves 696 | -10/Subcaves | Discovered new exit (range 6) 708 | -10/Subcaves | Shifting Twisted Machinery released Sub. Power Source 726 | -10/Subcaves | Shifting Twisted Machinery released Barrage Gun 910 | -10/Subcaves | Shifting Twisted Machinery released Sub. Laser 1107 | -10/Subcaves | Build established: Subdweller-Mutant 1216 | -10/Subcaves | Learned location of Zion (-6) 1216 | -10/Subcaves | Met a Zionite searching for "candidates" 1220 | -10/Subcaves | Discovered new exit (range 15) 1252 | -10/Subcaves | Ambushed by Subdweller buried in earth 1396 | -10/Subcaves | Disturbed a concealed Subdweller 1623 | -10/Subcaves | A swath of the cavern ceiling suddenly collapsed 1856 | -10/Subcaves | Core integrity fell below 50% 1902 | -10/Subcaves | Visited Clippyterm 2663 | -10/Subcaves | Core integrity fell below 20% 2679 | -10/Subcaves | A swath of the cavern ceiling suddenly collapsed 2973 | -10/Subcaves | Shifting Twisted Machinery released Sub. Laser 2981 | -10/Subcaves | Destroyed by Autobeam Turret with Autobeam Last Messages --------------- 02552_ Acquired 10 matter. 02638_ Sub. Beam Cannon shoots sparks and powers down. 02640_ Dropped Broken Sub. Beam Cannon. 02654_ 6T-35V(R) destroyed. 02657_ 9I-86R(R): "NAT20!" 02658_ IZ-7LK(R): "THANKSYOU!" 02659_ Critical hit (Destroy). 02663_ Destroyed Sub. Laser. 02669_ 9I-86R(R) destroyed. 02672_ IZ-7LK(R) destroyed. A swath of the cavern ceiling suddenly collapses. 02687_ Dropped Broken Sub. Power Source. 02764_ Acquired Sub. Machine Gun. 02781_ Acquired Sub. Power Source. Sub. Laser falls loose from the Twisted Machinery. 02981_ Acquired 12 matter. 02981_ Scrap Shield destroyed. Map ----- +----------------------------------------------------+ | #?#% #???##"#"#"########"#"#????????????????? | | #?## #?????#####""""#??##"##????????????????? | | ##??###?????????####"#??#####????????????????? | | #????????????????###"##?# #????????????????? | | ##????????????????#"#""###" #????????????????? | | ####?????????????????#"#"### " #????????????????? | | ###??????????????????#" "# """ ##????????????????? | | ##?????????????????## ### ##???????????????? | | #??????????????????####?### ##??????????????? | | #?????????????????????????# #??????????????? | | ##????????????????????????## ##??????????????? | | ##???????????????????????### #???????????????? | | #???????????????????##### ###?????????????? | | ##?????????????????## "# ##?###########? | | #?????????????????#"" " """ ### ## # # #? | | ###?????????????????# # #" " #? | | % #???????????????????## #### " # #? | | #???????????????????## ######### #? | | #???????????????????# ###?#?### ##### #? | | #???????????????????# # # # ## #???## #? | | %##??????????????????# #??## #? | | ##????????????????## #### #? | | #????????????????# """ ## ### ## #? | | #????? #######?## " ##??###?### ## | | ##???"t " ## #?????????## | | ### ##??? ![= @ #??????????# | | #?# #???"t &%& "" ???##### | | #?## ##??? ###### [" #? # # | | #??###??????????????# "" # ## | | ????????????????????# "% % % ##? | | ????????????????????# ## ## # #?? | | ????????????????????# #?# ###?? #?## #?? | | ????????????????????# ??#####????? ???# #?? | | ????????????????????## #????????????#? ??? ?? | | ?????????????????????##??????????????????## # #?? | | ???????????????????????????????????????##### ##?? | | #??????????????????????????????????????# #?# ???? | | #??????????????????????????????????????# ? ???? | | ???????????????????????????????????????# # ???? | | ???????????????????????????????????????# ?????? | | ??????????????????????????????????????## ?????? | | #????????????????????????????????????## #?????? | | #????????????????????????????????????# #?????? | | ##???????????????????????????????????# #?????? | | ##???????????????????????????????????# ####### | | ##??????????????????????????????????# ## | | ###????????????????????????????????# ] | | #????????????????????????????????## | | #?????????????????????????????????## | | ###??????????????#######????????????## | +----------------------------------------------------+ Best States ------------- Heat Dissipation 25 Energy Generation 15 Energy Capacity 250 Matter Stores 300 Matter Capacity 300 Sight Range 16 Terrain Scan Range 16 Terrain Scan Density 10 Armor Coverage 800 Evasion (%) 40 Recoil Reduction 2 Item Schematics ----------------- Huge Storage Unit | -10/Materials | Hacked Robot Schematics ------------------ None Fabricated ------------ Nothing Alien Tech Used ----------------- None Achievements -------------- None Challenges ------------ None Game ------ Seed AssaultAntimatterClaymores Manual? 0 Play Time 00:17:23 Cumulative 52.7 hours Start 2024.04.30 @ 12:38:41 End 2024.04.30 @ 12:54:49 Sessions 1 Manual Loads 0 Difficulty Rogue Special Mode None Game No. 73 Rogue 73 Adventurer 0 Explorer 0 Win Type - Total 1 Types 1/0/0/0/0/0/0/0/0 Lore% 27 Gallery% 43 Achievement% 32 Wizard Run 0 Options --------- Layout 1 ASCII 0 Keyboard 0 Movement Mouse Keybinds 0 Fullscreen 1 Font 24/Smallcaps Map View 50x35 Zoom Use 0% Tactical HUD 1 Map Filters NONE Filters NONE Steam 1 RUN: 07b05a22-a6fd-4c59-9b88-a055fd734ab3